bitfinex-derivatives/quotes_SOLF0:USTF0_20260218
["timestamp","ask_amount","ask_price","bid_price","bid_amount"]
[1771428849540,11.41645601,82.899,82.832,76.04]
[1771428849744,11.41645601,82.899,82.833,76.04]
[1771428850040,11.41645601,82.899,82.821,10.8705]
[1771428850430,11.41645601,82.899,82.822,76.04]
[1771428850838,11.41511771,82.897,82.821,10.8705]
[1771428851032,11.41511771,82.897,82.824,10.8701]
[1771428851538,11.41511771,82.897,82.81,6.26011169]
[1771428851539,11.39942374,82.896,82.814,10.8714]
[1771428851744,11.39942374,82.896,82.825,76.04]
[1771428852043,11.39942374,82.879,82.826,76.04]
[1771428853130,11.39942374,82.879,82.804,315.31941324]
[1771428853327,10.8632,82.878,82.805,76.02]
[1771428853533,11.39797626,82.877,82.805,76.02]
[1771428853828,11.39797626,82.877,82.806,86.8925]
[1771428854139,11.39797626,82.874,82.806,86.8925]
[1771428854332,6.24264144,82.9,82.804,315.31941324]
[1771428854333,11.39797626,82.859,82.804,315.31941324]
[1771428854528,11.39797626,82.859,82.807,76.02]
[1771428854933,11.39797626,82.859,82.808,10.8722]
[1771428855535,11.39282502,82.878,82.807,76.02]
[1771428855740,11.39282502,82.878,82.804,315.31941324]
[1771428855741,11.39282502,82.897,82.82,6.24264144]
[1771428855940,11.39282502,82.897,82.821,76.02]
[1771428856237,11.39282502,82.897,82.833,10.8689]
[1771428856431,11.39282502,82.897,82.834,76.02]
[1771428857845,11.39282502,82.897,82.842,10.8677]
[1771428858334,11.39282502,82.897,82.834,76.02]
[1771428858941,11.39282502,82.897,82.835,76.02]
[1771428859330,11.39282502,82.897,82.844,10.8675]
[1771428859741,11.39282502,82.897,82.845,76.02]
[1771428860145,11.39282502,82.897,82.844,10.8675]
[1771428860337,11.39282502,82.897,82.845,76.02]
[1771428861038,6.24264144,82.9,82.845,76.02]
[1771428861039,11.4154417,82.892,82.845,76.02]
[1771428861240,6.24264144,82.88,82.805,36.27]
[1771428861441,6.24264144,82.88,82.806,76.02]
[1771428861442,11.39406687,82.879,82.806,76.02]
[1771428861739,11.39406687,82.879,82.807,76.02]
[1771428862048,11.39406687,82.879,82.804,315.31941324]
[1771428862340,11.39406687,82.859,82.805,76.02]
[1771428863246,11.39406687,82.859,82.804,315.31941324]
[1771428863541,17.60511593,82.89,82.804,315.31941324]
[1771428863735,11.36247449,82.869,82.805,76.2]
[1771428864135,11.36247449,82.869,82.804,315.31941324]
[1771428864352,11.36247449,82.869,82.805,76.3]
[1771428864733,11.36247449,82.869,82.804,315.31941324]
[1771428865038,11.36247449,82.869,82.805,76.5]
[1771428865439,11.36247449,82.869,82.823,10.8703]
[1771428866037,10.8629,82.88,82.83,10.8694]
[1771428866238,11.36204012,82.884,82.82,6.24264144]
[1771428866438,6.24264144,82.89,82.82,6.24264144]
[1771428866644,10.8618,82.889,82.834,10.8687]
[1771428866844,22.22267567,82.889,82.834,10.8687]
[1771428867046,11.36087567,82.888,82.834,10.8687]
[1771428867246,10.862,82.887,82.834,10.8687]
[1771428867551,11.3464753,82.886,82.835,76.78]
[1771428868448,11.3464753,82.886,82.82,6.24264144]
[1771428868449,11.3464753,82.886,82.84,10.868]
[1771428868948,11.34531376,82.902,82.836,76.78]
[1771428869143,11.34531376,82.902,82.82,6.24264144]
[1771428869338,11.34531376,82.902,82.821,76.82]
[1771428869539,11.34531376,82.902,82.82,6.24264144]
[1771428869745,11.34531376,82.902,82.822,76.9]
[1771428870340,11.34531376,82.902,82.851,10.8666]
[1771428870539,11.34531376,82.902,82.852,77.02]
[1771428870945,11.34531376,82.902,82.851,77.06]
[1771428871348,11.34531376,82.902,82.852,77.06]
[1771428871650,11.34272053,82.901,82.852,77.06]
[1771428872238,11.34272053,82.897,82.843,10.8676]
[1771428872450,11.34272053,82.897,82.847,77.1]
[1771428873045,11.34162052,82.894,82.847,77.1]
[1771428873249,11.34162052,82.894,82.843,10.8676]
[1771428873446,11.34162052,82.894,82.846,77.14]
[1771428873745,36.27,82.931,82.804,315.31941324]
[1771428873746,11.34063869,82.889,82.804,315.31941324]
[1771428873941,11.34063869,82.889,82.805,77.14]
[1771428874149,11.34063869,82.869,82.814,10.8715]
[1771428874343,11.34063869,82.869,82.805,77.16]
[1771428874847,10.8655,82.86,82.805,77.16]
[1771428875042,11.33955595,82.859,82.805,77.16]
[1771428875551,11.31273412,82.849,82.804,315.31941324]
[1771428875750,11.31273412,82.849,82.795,77.6]
[1771428876249,10.868,82.841,82.795,77.6]
[1771428876650,10.868,82.841,82.788,10.8748]
[1771428876956,10.868,82.841,82.789,77.72]
[1771428877341,10.868,82.841,82.793,10.8742]
[1771428878446,10.8688,82.835,82.789,77.76]
[1771428878647,10.8688,82.835,82.786,10.8752]
[1771428878851,10.8688,82.835,82.787,77.76]
[1771428879242,10.8688,82.835,82.77,6.24264144]
[1771428879547,10.8688,82.835,82.776,76.02]
[1771428879746,10.8688,82.835,82.79,10.8746]
[1771428879941,10.8686,82.837,82.776,76.02]
[1771428880254,11.31273412,82.849,82.792,10.8743]
[1771428880752,10.8684,82.838,82.77,6.24264144]
[1771428880950,11.31273412,82.849,82.785,10.8752]
[1771428881652,11.31273412,82.849,82.77,6.24264144]
[1771428881843,11.35131772,82.839,82.77,76.02]
[1771428882542,11.35036858,82.825,82.769,10.8774]
[1771428882749,11.35036858,82.825,82.762,77.7]
[1771428882946,11.35036858,82.825,82.74,36.27]
[1771428883150,11.35036858,82.838,82.74,36.27]
[1771428883352,11.35036858,82.838,82.763,76.02]
[1771428884647,11.35036858,82.838,82.77,10.8772]
[1771428884843,11.35036858,82.838,82.763,76.02]
[1771428885346,11.35036858,82.838,82.77,6.24264144]
[1771428885650,6.24264144,82.85,82.785,10.8752]
[1771428885846,11.3482334,82.849,82.785,10.8752]
[1771428886244,11.3482334,82.846,82.775,5.07399577]
[1771428886440,11.34734801,82.829,82.775,5.07399577]
[1771428887952,10.8697,82.828,82.775,5.07399577]
[1771428888261,6.24264144,82.83,82.775,5.07399577]
[1771428888448,6.24264144,82.83,82.777,10.8763]
[1771428888648,11.367978,82.829,82.777,10.8763]
[1771428888847,11.367978,82.829,82.775,5.07399577]
[1771428889048,11.367978,82.849,82.775,5.07399577]
[1771428889257,11.367978,82.865,82.78,6.24264144]
[1771428890355,11.367978,82.865,82.78,83.74264144]
[1771428890757,11.36178225,82.849,82.801,10.8732]
[1771428891750,11.36178225,82.849,82.791,10.8744]
[1771428891953,11.36178225,82.849,82.775,5.07399577]
[1771428891954,11.27734516,82.829,82.775,5.07399577]
[1771428892559,11.27734516,82.829,82.789,10.8747]
[1771428894653,11.27734516,82.829,82.781,10.8757]
[1771428894956,11.30403119,82.819,82.775,5.07399577]
[1771428895150,11.30403119,82.819,82.776,10.8764]
[1771428896062,11.27048318,82.837,82.775,5.07399577]
[1771428896557,11.27048318,82.837,82.775,15.95049577]
[1771428896855,11.26961004,82.819,82.775,5.07399577]
[1771428900859,11.26961004,82.819,82.776,10.8764]
[1771428901055,11.39204073,82.835,82.775,5.07399577]
[1771428901568,11.39204073,82.835,82.781,10.8758]
[1771428902262,11.39204073,82.835,82.775,5.07399577]
[1771428903662,6.24264144,82.84,82.775,5.07399577]
[1771428903963,6.24264144,82.86,82.78,6.24264144]
[1771428904365,6.24264144,82.86,82.808,10.8722]
[1771428904667,11.41339831,82.858,82.775,5.07399577]
[1771428905062,9.27844377,82.857,82.775,5.07399577]
[1771428905263,11.41339831,82.855,82.775,5.07399577]
[1771428905457,11.41339831,82.855,82.804,10.8727]
[1771428905667,11.41339831,82.855,82.775,5.07399577]
[1771428906364,11.34533287,82.853,82.789,10.8747]
[1771428906773,11.34533287,82.839,82.775,5.07399577]
[1771428907862,11.34533287,82.839,82.784,10.8754]
[1771428908063,11.34533287,82.839,82.775,5.07399577]
[1771428909174,6.24264144,82.85,82.775,5.07399577]
[1771428909371,11.380692,82.855,82.79,6.24264144]
[1771428909570,11.48380746,82.87,82.79,6.24264144]
[1771428909875,11.48380746,82.87,82.825,10.8699]
[1771428911564,11.48380746,82.87,82.81,6.24264144]
[1771428911565,11.48380746,82.87,82.831,10.8692]
[1771428912771,11.42346161,82.89,82.81,6.24264144]
[1771428913069,11.42346161,82.909,82.83,6.24264144]
[1771428913262,11.42346161,82.909,82.85,6.24264144]
[1771428913468,11.44775814,82.925,82.85,6.24264144]
[1771428913867,11.44775814,82.925,82.85,6.23543776]
[1771428914772,11.44775814,82.925,82.872,10.8638]
[1771428914975,11.44775814,82.925,82.85,6.23543776]
[1771428915174,5.0,82.935,82.85,6.23543776]
[1771428915175,5.0,82.935,82.871,8.30404455]
[1771428915374,5.0,82.935,82.899,10.8602]
[1771428916372,6.23543776,82.96,82.909,10.8589]
[1771428917168,9.0809117,82.959,82.909,10.8589]
[1771428917478,9.0809117,82.957,82.899,10.8603]
[1771428917868,9.0809117,82.957,82.908,10.8591]
[1771428918066,76.02,82.958,82.854,190.7627]
[1771428918067,5.0,82.985,82.91,6.23543776]
[1771428918373,9.0809117,82.969,82.895,76.02]
[1771428918562,9.0809117,82.967,82.892,7.92673865]
[1771428918963,76.02,82.966,82.892,7.92673865]
[1771428919174,9.0809117,82.966,82.892,7.92673865]
[1771428919371,9.0809117,82.965,82.904,10.8596]
[1771428919671,9.0809117,82.949,82.892,7.92673865]
[1771428920073,9.0809117,82.949,82.892,18.78793865]
[1771428920270,9.0809117,82.949,82.892,7.92673865]
[1771428920976,9.0809117,82.949,82.87,6.23543776]
[1771428920977,9.0809117,82.949,82.871,7.51800357]
[1771428921276,9.0809117,82.949,82.891,10.8614]
[1771428921480,9.0809117,82.949,82.871,7.51800357]
[1771428921679,9.0809117,82.949,82.802,179.0]
[1771428921680,9.0809117,82.929,82.853,7.02125916]
[1771428921971,9.0809117,82.909,82.853,7.02125916]
[1771428922378,9.0809117,82.909,82.836,7.02125916]
[1771428922878,9.0809117,82.907,82.836,7.02125916]
[1771428923074,9.0809117,82.889,82.836,7.02125916]
[1771428923281,9.0809117,82.889,82.825,5.07093269]
[1771428923471,76.0,82.899,82.826,6.39169669]
[1771428923673,9.0809117,82.898,82.847,10.867]
[1771428924381,9.0809117,82.898,82.846,10.8673]
[1771428924582,9.0809117,82.896,82.846,10.8673]
[1771428924880,6.23543776,82.9,82.826,6.39169669]
[1771428924881,9.0809117,82.879,82.826,6.39169669]
[1771428925177,76.0,82.878,82.826,6.39169669]
[1771428925483,9.0809117,82.877,82.825,5.07093269]
[1771428925679,6.23543776,82.86,82.825,5.07093269]
[1771428926180,9.0809117,82.859,82.825,5.07093269]
[1771428927078,9.0809117,82.859,82.78,6.23543776]
[1771428927079,9.0809117,82.839,82.774,9.74987891]
[1771428927279,9.0809117,82.837,82.789,10.8747]
[1771428927477,9.0809117,82.837,82.774,9.74987891]
[1771428928380,9.0809117,82.837,82.78,9.74987891]
[1771428928581,6.23543776,82.84,82.78,9.74987891]
[1771428929380,76.0,82.846,82.78,9.74987891]
[1771428929580,9.0809117,82.872,82.78,9.74987891]
[1771428929782,6.23543776,82.86,82.808,9.74987891]
[1771428930183,6.23543776,82.87,82.825,10.8699]
[1771428930381,9.0809117,82.869,82.808,9.74987891]
[1771428930573,9.0809117,82.869,82.785,9.74987891]
[1771428930770,9.0809117,82.849,82.785,9.74987891]
[1771428930974,9.0809117,82.849,82.806,10.8725]
[1771428931479,9.0809117,82.849,82.81,10.872]
[1771428932078,6.23543776,82.85,82.819,10.8708]
[1771428932382,9.0809117,82.866,82.801,9.74987891]
[1771428932982,76.02,82.881,82.839,10.8681]
[1771428933578,6.23543776,82.87,82.829,10.8694]
[1771428934480,6.23543776,82.87,82.769,21.7546]
[1771428934481,9.0809117,82.869,82.803,9.74987891]
[1771428935583,9.0809117,82.849,82.782,9.74987891]
[1771428936688,9.0809117,82.849,82.805,10.8726]
[1771428937486,9.0809117,82.87,82.8,9.74987891]
[1771428937686,15.31634946,82.87,82.8,9.74987891]
[1771428938190,15.31634946,82.87,82.839,10.8681]
[1771428938581,6.23543776,82.87,82.839,10.8681]
[1771428939381,6.23543776,82.87,82.79,6.23543776]
[1771428939382,6.23543776,82.85,82.789,9.74987891]
[1771428939584,6.23543776,82.86,82.789,9.74987891]
[1771428939780,6.23543776,82.86,82.81,10.872]
[1771428939984,9.0809117,82.859,82.81,10.872]
[1771428940183,9.0809117,82.859,82.789,9.74987891]
[1771428941487,6.23543776,82.89,82.807,9.74987891]
[1771428941786,6.23543776,82.89,82.821,9.74987891]
[1771428942190,9.0809117,82.889,82.821,9.74987891]
[1771428942495,9.0809117,82.888,82.821,9.74987891]
[1771428942789,6.23543776,82.91,82.824,178.84187891]
[1771428942989,263.66513685,82.966,82.841,9.74987891]
[1771428942990,6.23543776,82.92,82.841,9.74987891]
[1771428943184,6.23543776,82.92,82.865,9.74987891]
[1771428943892,6.23543776,82.92,82.888,10.8617]
[1771428945685,6.23543776,82.92,82.865,9.74987891]
[1771428945686,6.23543776,82.92,82.88,10.8627]
[1771428946382,5.48279057,82.954,82.882,8.96261253]
[1771428946680,6.23543776,82.95,82.882,8.96261253]
[1771428946986,6.23543776,82.96,82.884,9.23624841]
[1771428947185,76.02,82.973,82.884,9.23624841]
[1771428947386,6.23543776,82.97,82.91,9.20603767]
[1771428948389,6.23543776,82.97,82.88,6.23543776]
[1771428948390,6.23543776,82.97,82.889,76.0]
[1771428948593,11.21532151,82.996,82.89,9.20584349]
[1771428948792,6.23543776,82.99,82.956,10.8528]
[1771428949189,6.23543776,82.99,82.938,9.20584349]
[1771428949386,6.23543776,82.97,82.919,9.35842267]
[1771428949584,3.776e-05,82.97,82.919,9.35842267]
[1771428949785,76.0,82.985,82.919,9.35842267]
[1771428949990,6.23543776,82.97,82.924,10.857]
[1771428950192,76.0,82.984,82.919,9.35842267]
[1771428950396,6.23543776,82.98,82.919,9.35842267]
[1771428950592,6.23543776,82.98,82.944,10.8544]
[1771428951291,6.23543776,83.0,82.936,9.35811149]
[1771428952487,6.23543776,82.98,82.936,9.35811149]
[1771428952698,6.23543776,82.98,82.905,9.35889363]
[1771428952899,6.23543776,82.98,82.939,10.855]
[1771428953291,75.98,82.986,82.939,10.855]
[1771428953497,75.98,82.986,82.929,9.35889363]
[1771428953995,443.12068395,83.002,82.94,9.3633119]
[1771428954195,6.23543776,83.0,82.94,9.3633119]
[1771428954393,75.98,82.999,82.94,9.3633119]
[1771428954595,443.12068395,83.002,82.94,9.3633119]
[1771428954788,443.12068395,83.002,82.941,9.36300788]
[1771428955699,6.23543776,83.0,82.941,9.36300788]
[1771428956800,519.08068395,83.002,82.941,9.36300788]
[1771428957101,31.26348635,83.021,82.974,10.8504]
[1771428957300,31.21263367,83.019,82.974,10.8504]
[1771428957797,31.21263367,83.019,82.982,10.8494]
[1771428957995,6.23543776,83.03,82.92,168.8965]
[1771428957996,31.21263367,83.026,82.93,6.23543776]
[1771428958194,6.23543776,83.03,82.931,75.94]
[1771428958195,31.21263367,83.024,82.931,75.94]
[1771428958395,6.23543776,83.01,82.931,75.94]
[1771428958705,37.44514459,83.01,82.932,76.44]
[1771428958897,37.44514459,83.01,82.93,6.23543776]
[1771428959298,31.20970683,83.008,82.93,6.23543776]
[1771428960003,31.11909317,83.006,82.93,6.23543776]
[1771428960500,31.11751666,83.003,82.92,6.23543776]
[1771428960797,31.11751666,83.003,82.94,6.23543776]
[1771428961102,6.23543776,83.01,82.94,6.23543776]
[1771428961302,6.23543776,83.01,82.94,82.77543776]
[1771428961502,6.23543776,83.01,82.971,10.8508]
[1771428961999,75.94,83.019,82.94,82.77543776]
[1771428962201,31.11751666,83.022,82.941,21.7097]
[1771428962503,31.11751666,83.022,82.988,10.8486]
[1771428962701,21.6705,83.092,82.963,21.7039]
[1771428962900,6.23543776,83.05,82.96,6.23543776]
[1771428963106,75.92,83.049,83.013,10.8453]
[1771428963315,6.23543776,83.07,82.98,6.23543776]
[1771428963501,6.23543776,83.07,82.981,76.72]
[1771428963697,3.763e-05,83.085,83.006,168.7212]
[1771428964002,3.763e-05,83.085,83.007,21.6924]
[1771428964202,3.763e-05,83.085,83.049,10.8406]
[1771428964502,3.763e-05,83.085,83.034,168.6647]
[1771428964701,3.763e-05,83.135,83.07,6.23543776]
[1771428964894,9.839e-05,83.144,83.07,6.23543776]
[1771428965097,12.25807213,83.17,83.09,6.23543776]
[1771428965297,6.23543776,83.25,83.145,10.8282]
[1771428965298,6.23543776,83.2,83.145,10.8282]
[1771428965700,6.23543776,83.2,83.088,168.555]
[1771428965701,6.23543776,83.16,83.103,10.8337]
[1771428965901,6.23543776,83.14,83.06,6.23543776]
[1771428966199,6.23543776,83.12,83.01,168.7129]
[1771428966402,6.23543776,83.12,83.03,6.23543776]
[1771428966602,6.23543776,83.12,83.008,168.7172]
[1771428966603,75.92,83.119,83.031,77.16]
[1771428966800,75.92,83.118,83.032,77.18]
[1771428967004,10.06783403,83.117,83.075,5.05567259]
[1771428967900,10.11351642,83.115,83.052,10.8403]
[1771428968105,16.34895418,83.1,83.052,10.8403]
[1771428968299,6.23543776,83.08,83.025,5.05871725]
[1771428968606,10.11264135,83.098,83.026,77.12]
[1771428968905,6.23543776,83.09,83.046,10.8411]
[1771428969205,10.11264135,83.098,83.025,5.05871725]
[1771428969508,10.11264135,83.098,83.035,77.18]
[1771428969803,10.11264135,83.098,83.03,77.2]
[1771428969804,3.776e-05,83.09,83.03,77.2]
[1771428970106,3.776e-05,83.09,83.025,5.05871725]
[1771428970107,10.13505698,83.09,83.025,5.05871725]
[1771428970300,10.13811455,83.088,83.025,5.05871725]
[1771428970501,6.23543776,83.1,83.025,5.05871725]
[1771428970502,10.13811455,83.069,83.025,5.05871725]
[1771428971006,10.13811455,83.067,83.025,5.05871725]
[1771428971207,6.23543776,83.05,83.025,2.97438984]
[1771428971509,10.13811455,83.067,83.025,2.97438984]
[1771428972106,6.23543776,83.06,83.025,2.97438984]
[1771428972303,3.776e-05,83.06,83.025,2.97438984]
[1771428972503,6.23543776,83.1,83.025,2.97438984]
[1771428972504,75.86,83.096,83.025,2.97438984]
[1771428972809,10.14093813,83.099,83.025,2.97438984]
[1771428973603,6.23543776,83.12,83.04,6.23543776]
[1771428973804,10.18347111,83.119,83.04,6.23543776]
[1771428974005,10.18347111,83.119,83.025,2.97438984]
[1771428974006,10.18347111,83.109,83.039,77.32]
[1771428974208,10.18347111,83.109,83.052,10.8403]
[1771428974803,10.18347111,83.109,83.032,77.34]
[1771428975004,10.18347111,83.109,83.052,10.8403]
[1771428975501,6.20876241,83.1,83.052,10.8403]
[1771428975908,10.17646089,83.099,83.041,10.8417]
[1771428976104,10.17646089,83.099,83.025,2.97438984]
[1771428976508,10.17646089,83.099,83.039,10.842]
[1771428976704,6.20876241,83.08,83.025,2.97438984]
[1771428976911,10.17592746,83.079,83.025,2.97438984]
[1771428977409,10.17592746,83.099,83.025,2.97438984]
[1771428978109,10.17592746,83.099,83.03,6.20876241]
[1771428978304,6.20876241,83.11,83.043,8.60042118]
[1771428978512,6.20876241,83.14,83.051,8.60042118]
[1771428978805,6.20876241,83.14,83.071,8.62249355]
[1771428979010,6.20876241,83.16,83.071,8.62249355]
[1771428979408,6.20876241,83.16,83.091,8.55690619]
[1771428979806,6.20876241,83.18,83.127,10.8305]
[1771428980108,6.20876241,83.16,83.094,75.84]
[1771428980308,6.20876241,83.16,83.091,8.55690619]
[1771428981010,8.45605644,83.159,83.101,10.8339]
[1771428981219,75.84,83.158,83.074,8.63423265]
[1771428981511,75.84,83.157,83.074,8.63423265]
[1771428982112,8.45605644,83.159,83.11,10.8328]
[1771428982315,8.45605644,83.159,83.093,8.65962177]
[1771428982707,8.45605644,83.159,83.1,10.834]
[1771428982916,8.45605644,83.158,83.093,8.65962177]
[1771428983112,8.45605644,83.158,83.08,6.20876241]
[1771428983313,6.20876241,83.14,83.085,10.836]
[1771428983611,6.20876241,83.14,83.073,8.66837894]
[1771428984113,6.20876241,83.14,83.094,10.8348]
[1771428984516,8.45605644,83.139,83.082,10.8363]
[1771428984714,8.45605644,83.139,83.073,8.66837894]
[1771428984916,8.45605644,83.139,82.994,168.7455]
[1771428984917,8.45605644,83.137,83.061,8.69743218]
[1771428985111,8.45605644,83.137,83.063,8.69743218]
[1771428985310,8.45605644,83.137,83.065,8.69743218]
[1771428985609,8.45605644,83.158,83.081,8.70179013]
[1771428985817,8.45605644,83.158,83.095,10.8347]
[1771428986008,75.8,83.157,83.081,8.70179013]
[1771428986313,8.45605644,83.176,83.101,8.69851424]
[1771428986515,8.45605644,83.174,83.101,8.69851424]
[1771428986715,6.20876241,83.16,83.101,8.69851424]
[1771428987115,8.45605644,83.159,83.084,75.8]
[1771428987313,8.45605644,83.159,83.106,10.8332]
[1771428988112,6.20876241,83.14,83.097,10.8344]
[1771428988318,6.20876241,83.14,83.082,8.69512088]
[1771428988818,6.20876241,83.14,83.088,10.8356]
[1771428989012,6.20876241,83.14,83.008,168.7174]
[1771428989013,6.20876241,83.12,83.05,6.20876241]
[1771428989215,6.20876241,83.14,83.051,8.68716955]
[1771428989419,75.8,83.139,83.071,8.694421]
[1771428989626,84.25605644,83.139,83.071,8.694421]
[1771428990116,8.45605644,83.139,83.071,8.694421]
[1771428990420,8.45605644,83.139,83.095,10.8347]
[1771428991314,8.45605644,83.139,83.086,10.8358]
[1771428991515,8.45605644,83.119,83.051,8.668931]
[1771428991720,6.20876241,83.1,83.051,8.668931]
[1771428992422,6.20876241,83.1,83.031,8.66587448]
[1771428992617,6.20876241,83.1,83.025,39.07438984]
[1771428992618,8.45605644,83.14,83.051,8.66271045]
[1771428992817,8.45605644,83.16,83.091,8.66271045]
[1771428993018,8.45605644,83.16,83.112,10.8324]
[1771428993323,6.20876241,83.15,83.091,8.66271045]
[1771428993621,8.45605644,83.149,83.091,8.66271045]
[1771428994616,8.45605644,83.149,83.11,10.8327]
[1771428995017,8.45605644,83.17,83.091,8.66271045]
[1771428995219,8.45605644,83.17,83.101,8.36076121]
[1771428995619,8.45605644,83.159,83.101,8.36076121]
[1771428996312,8.45605644,83.159,83.11,10.8326]
[1771428996717,8.45605644,83.179,83.115,8.66264724]
[1771428997619,8.45605644,83.174,83.1,75.78]
[1771428997820,8.45605644,83.159,83.08,6.20876241]
[1771428998018,6.20876241,83.14,83.078,8.66054246]
[1771428998218,6.20876241,83.14,83.106,10.8333]
[1771428998417,8.45605644,83.159,83.081,8.6604074]
[1771428998825,8.45605644,83.159,83.112,10.8325]
[1771428999822,8.45605644,83.154,83.101,10.8338]
[1771429000520,8.45605644,83.151,83.092,10.8351]
[1771429000726,8.45605644,83.139,83.092,10.8351]
[1771429001621,8.45605644,83.139,83.099,10.8341]
[1771429002717,6.20876241,83.15,83.107,10.8332]
[1771429003329,6.20876241,83.15,83.079,8.66380908]
[1771429003330,8.45605644,83.148,83.098,10.8343]
[1771429003531,8.45605644,83.148,83.079,8.66380908]
[1771429003918,8.45605644,83.139,83.061,8.24561181]
[1771429004122,8.45605644,83.129,83.061,8.24561181]
[1771429004722,6.20876241,83.13,83.026,36.1]
[1771429004723,1.885e-05,83.13,83.065,9.1691411]
[1771429004921,6.20876241,83.14,83.07,6.20876241]
[1771429005121,6.20876241,83.14,83.071,8.902323]
[1771429005321,10.829,83.139,83.096,10.8345]
[1771429005520,6.20876241,83.14,83.071,8.902323]
[1771429005728,6.20876241,83.16,83.071,8.902323]
[1771429005928,6.20876241,83.16,83.107,10.8332]
[1771429005929,10.8266,83.158,83.107,10.8332]
[1771429006632,6.20876241,83.16,83.088,8.902323]
[1771429007932,19.68346617,83.159,83.088,8.902323]
[1771429008135,8.85696617,83.158,83.088,8.902323]
[1771429008344,8.85696617,83.158,83.116,10.8319]
[1771429008534,8.85696617,83.158,83.065,21.6772]
[1771429008535,8.85696617,83.171,83.091,8.902323]
[1771429009038,8.85696617,83.169,83.125,10.8308]
[1771429009341,8.85696617,83.158,83.117,10.8318]
[1771429009729,8.85696617,83.158,83.091,8.902323]
[1771429009935,6.20876241,83.16,83.091,8.902323]
[1771429009936,8.85696617,83.149,83.091,8.902323]
[1771429010335,8.85696617,83.166,83.091,8.902323]
[1771429010537,8.85696617,83.166,83.123,10.831]
[1771429010732,8.85696617,83.166,83.091,8.902323]
[1771429011040,10.8276,83.15,83.091,8.902323]
[1771429011231,10.8276,83.15,83.07,6.20876241]
[1771429011232,8.85696617,83.149,83.071,8.902323]
[1771429011433,8.85696617,83.147,83.071,8.902323]
[1771429011634,15.06572858,83.16,83.081,8.902323]
[1771429012034,15.06572858,83.16,83.082,8.902323]
[1771429012235,8.85696617,83.159,83.082,8.902323]
[1771429012440,6.20876241,83.16,83.082,8.902323]
[1771429012441,8.85696617,83.157,83.082,8.902323]
[1771429012643,8.85696617,83.139,83.082,8.902323]
[1771429013037,8.85696617,83.139,83.1,10.834]
[1771429013440,8.85696617,83.139,83.061,21.6783]
[1771429013441,8.85696617,83.139,83.061,8.902323]
[1771429014339,8.85696617,83.139,83.099,10.8341]
[1771429014940,8.85696617,83.139,83.08,8.902323]
[1771429016347,8.85696617,83.139,83.103,10.8336]
[1771429016645,8.85696617,83.139,83.08,8.902323]
[1771429016850,8.85696617,83.139,83.103,10.8337]
[1771429017053,6.20876241,83.14,83.08,8.902323]
[1771429017345,8.85696617,83.158,83.121,10.8313]
[1771429017640,8.93567763,83.177,83.101,8.94337752]
[1771429017843,8.93567763,83.175,83.101,8.94337752]
[1771429018041,9.24999424,83.174,83.101,8.94337752]
[1771429018233,8.93567763,83.172,83.101,8.94337752]
[1771429018432,8.93567763,83.17,83.101,8.94337752]
[1771429018837,8.93567763,83.159,83.101,8.94337752]
[1771429019133,8.93567763,83.157,83.119,10.8315]
[1771429019536,8.93567763,83.157,83.101,8.94337752]
[1771429019744,8.93567763,83.155,83.101,8.94337752]
[1771429021746,8.93567763,83.155,83.109,10.8329]
[1771429021944,84.69567763,83.155,83.109,10.8329]
[1771429022142,8.93567763,83.153,83.101,8.94337752]
[1771429022545,75.76,83.156,83.101,8.94337752]
[1771429022746,75.76,83.156,83.125,10.8308]
[1771429022947,6.20876241,83.19,83.111,8.94337752]
[1771429023142,9.27190782,83.184,83.111,8.94337752]
[1771429023341,6.20876241,83.19,83.153,10.8271]
[1771429023545,6.20876241,83.19,83.129,8.94337752]
[1771429023743,75.76,83.198,83.131,8.94337752]
[1771429023941,9.27298055,83.197,83.131,8.94337752]
[1771429024146,15.14444004,83.21,83.131,8.94337752]
[1771429024346,15.14444004,83.21,83.13,6.20876241]
[1771429024347,85.02568564,83.203,83.17,10.8249]
[1771429024544,313.72570367,83.204,83.153,8.94337752]
[1771429024748,8.93567763,83.229,83.156,8.94337752]
[1771429024947,85.02295725,83.228,83.156,8.94337752]
[1771429025243,10.9663414,83.251,83.175,36.1]
[1771429025448,75.76,83.268,83.191,8.94337752]
[1771429025645,29.62591452,83.28,83.175,21.6486]
[1771429025646,8.93567763,83.267,83.175,21.6486]
[1771429025845,8.93567763,83.267,83.133,168.4625]
[1771429025846,8.93567763,83.239,83.181,8.94337752]